[Event "Early-Titled-Tuesday-Blitz-October-10-2023"]
[Site "Chess.com"]
[Date "2023.10.10"]
[Round "9"]
[White "McCarthyStone"]
[Black "cande_francisco"]
[Result "1-0"]
[WhiteElo "2430"]
[BlackElo "2523"]
[TimeControl "180+1"]
[EndTime "9:44:22 PDT"]
[Termination "McCarthyStone won by resignation"]

1. Nf3 {[%clk 0:03:00.9]} 1... c5 {[%clk 0:02:58.9]} 2. b3 {[%clk 0:02:59.9]}
2... Nc6 {[%clk 0:02:58.6]} 3. Bb2 {[%clk 0:03:00.5]} 3... d5 {[%clk 0:02:57.5]}
4. e3 {[%clk 0:03:00.9]} 4... Nf6 {[%clk 0:02:53.3]} 5. Bb5 {[%clk 0:03:00.2]}
5... e6 {[%clk 0:02:48.7]} 6. Ne5 {[%clk 0:03:00.1]} 6... Qc7 {[%clk 0:02:48.3]}
7. Bxc6+ {[%clk 0:02:59.9]} 7... bxc6 {[%clk 0:02:48.4]} 8. O-O {[%clk
0:03:00.5]} 8... Nd7 {[%clk 0:02:44.3]} 9. f4 {[%clk 0:02:55.1]} 9... Nxe5
{[%clk 0:02:33.1]} 10. Bxe5 {[%clk 0:02:56]} 10... Qd8 {[%clk 0:02:14.1]} 11.
Qh5 {[%clk 0:02:51.4]} 11... g6 {[%clk 0:02:04.6]} 12. Qf3 {[%clk 0:02:38.8]}
12... f6 {[%clk 0:02:02.8]} 13. Bb2 {[%clk 0:02:39.4]} 13... Bg7 {[%clk
0:02:01.9]} 14. Nc3 {[%clk 0:02:39.9]} 14... O-O {[%clk 0:02:01.3]} 15. Na4
{[%clk 0:02:40.5]} 15... c4 {[%clk 0:01:57.5]} 16. bxc4 {[%clk 0:02:40.7]} 16...
Rb8 {[%clk 0:01:52.9]} 17. Ba3 {[%clk 0:02:41.2]} 17... Re8 {[%clk 0:01:51.7]}
18. cxd5 {[%clk 0:02:23.3]} 18... Qa5 {[%clk 0:01:38.9]} 19. Bd6 {[%clk
0:02:16.5]} 19... Qxa4 {[%clk 0:01:05]} 20. Bxb8 {[%clk 0:02:16.1]} 20... Ba6
{[%clk 0:01:03.3]} 21. Rfb1 {[%clk 0:02:02.6]} 21... cxd5 {[%clk 0:01:02.1]} 22.
c3 {[%clk 0:01:51.8]} 22... Bd3 {[%clk 0:00:59.4]} 23. Rb4 {[%clk 0:01:47]}
23... Qd7 {[%clk 0:00:58.4]} 24. Qd1 {[%clk 0:01:41.5]} 24... a5 {[%clk
0:00:55.4]} 25. Rb6 {[%clk 0:01:28.9]} 25... e5 {[%clk 0:00:46.4]} 26. fxe5
{[%clk 0:01:22.2]} 26... fxe5 {[%clk 0:00:47.3]} 27. Qb3 {[%clk 0:01:21.6]}
27... Bc4 {[%clk 0:00:46.2]} 28. Qa3 {[%clk 0:01:20.2]} 28... Qf7 {[%clk
0:00:41]} 29. Bd6 {[%clk 0:01:05.8]} 29... Bf8 {[%clk 0:00:31.8]} 30. Rab1
{[%clk 0:00:52.9]} 30... Bd3 {[%clk 0:00:27.7]} 31. Rb7 {[%clk 0:00:13]} 31...
Qf6 {[%clk 0:00:21]} 32. Qa4 {[%clk 0:00:13.5]} 32... Qd8 {[%clk 0:00:04]} 33.
Rd7 {[%clk 0:00:06.7]} 33... Qf6 {[%clk 0:00:04]} 34. Re1 {[%clk 0:00:03.8]}
34... Bxd6 {[%clk 0:00:03.4]} 35. Rxd6 {[%clk 0:00:04.4]} 35... Qf7 {[%clk
0:00:03.6]} 36. Qd7 {[%clk 0:00:03.7]} 36... Qf8 {[%clk 0:00:01.9]} 37. Rxd5
{[%clk 0:00:03.7]} 37... Re7 {[%clk 0:00:02.4]} 38. Qd6 {[%clk 0:00:03.2]} 38...
Qe8 {[%clk 0:00:02.2]} 39. Rxd3 {[%clk 0:00:03.3]} 39... e4 {[%clk 0:00:03.1]}
40. Qd5+ {[%clk 0:00:03.8]} 40... Rf7 {[%clk 0:00:03.9]} 41. Rd4 {[%clk
0:00:04.7]} 41... Qe7 {[%clk 0:00:04.2]} 42. Qxe4 {[%clk 0:00:04.6]} 42... Qf6
{[%clk 0:00:04.9]} 43. Qf3 {[%clk 0:00:04.4]} 43... Qb6 {[%clk 0:00:05.5]} 44.
Rf4 {[%clk 0:00:04.9]} 44... Rc7 {[%clk 0:00:04.6]} 45. Rf1 {[%clk 0:00:05.2]}
45... Kg7 {[%clk 0:00:05.4]} 46. Rf7+ {[%clk 0:00:05.2]} 46... Rxf7 {[%clk
0:00:06]} 47. Qxf7+ {[%clk 0:00:06.1]} 47... Kh6 {[%clk 0:00:06.6]} 48. Qf4+
{[%clk 0:00:06.9]} 48... Kg7 {[%clk 0:00:06.6]} 49. Qd4+ {[%clk 0:00:07.8]} 1-0

[Event "Early-Titled-Tuesday-Blitz-October-10-2023"]
[Site "Chess.com"]
[Date "2023.10.10"]
[Round "9"]
[White "LeoLV10"]
[Black "DonJuanEGenaro"]
[Result "1-0"]
[WhiteElo "2567"]
[BlackElo "1900"]
[TimeControl "180+1"]
[EndTime "9:44:27 PDT"]
[Termination "LeoLV10 won on time"]

1. e4 {[%clk 0:03:00.9]} 1... d6 {[%clk 0:02:58.5]} 2. d4 {[%clk 0:03:00.3]}
2... e5 {[%clk 0:02:58.2]} 3. Nf3 {[%clk 0:02:58.8]} 3... Nf6 {[%clk 0:02:56.1]}
4. Nc3 {[%clk 0:02:58.5]} 4... Nbd7 {[%clk 0:02:54.5]} 5. Bc4 {[%clk 0:02:57.2]}
5... Be7 {[%clk 0:02:54.3]} 6. O-O {[%clk 0:02:56.8]} 6... O-O {[%clk
0:02:53.8]} 7. a4 {[%clk 0:02:56.5]} 7... c6 {[%clk 0:02:53.5]} 8. Re1 {[%clk
0:02:52.4]} 8... a5 {[%clk 0:02:52.8]} 9. b3 {[%clk 0:02:47.4]} 9... Nxe4 {[%clk
0:02:19.4]} 10. Rxe4 {[%clk 0:02:45.1]} 10... d5 {[%clk 0:02:19.5]} 11. Nxd5
{[%clk 0:02:43.9]} 11... cxd5 {[%clk 0:02:19]} 12. Bxd5 {[%clk 0:02:41.9]} 12...
Nf6 {[%clk 0:02:10.5]} 13. c4 {[%clk 0:02:20]} 13... Nxe4 {[%clk 0:02:06.1]} 14.
Bxe4 {[%clk 0:02:20.9]} 14... exd4 {[%clk 0:02:03.9]} 15. Qd3 {[%clk 0:02:20.5]}
15... h6 {[%clk 0:01:54.8]} 16. Bb2 {[%clk 0:02:16]} 16... Bf6 {[%clk
0:01:54.5]} 17. Rd1 {[%clk 0:02:15.5]} 17... Re8 {[%clk 0:01:53.1]} 18. g3
{[%clk 0:02:08.9]} 18... Bg4 {[%clk 0:01:52.2]} 19. Bxb7 {[%clk 0:01:58.6]}
19... Rb8 {[%clk 0:01:45.4]} 20. Bc6 {[%clk 0:01:58.7]} 20... Re6 {[%clk
0:01:33.8]} 21. Bd5 {[%clk 0:01:57.2]} 21... Rd6 {[%clk 0:01:33.6]} 22. Qe4
{[%clk 0:01:53.5]} 22... Qd7 {[%clk 0:01:24.2]} 23. h3 {[%clk 0:01:15.3]} 23...
Bxh3 {[%clk 0:01:09.2]} 24. Bxd4 {[%clk 0:01:07.6]} 24... Bf5 {[%clk 0:01:00.2]}
25. Qe3 {[%clk 0:01:00.7]} 25... Rxd5 {[%clk 0:00:59.3]} 26. cxd5 {[%clk
0:00:51.7]} 26... Qxd5 {[%clk 0:00:58.7]} 27. Re1 {[%clk 0:00:29.8]} 27... Rxb3
{[%clk 0:00:43.3]} 28. Qe8+ {[%clk 0:00:29.3]} 28... Kh7 {[%clk 0:00:43.1]} 29.
Bxf6 {[%clk 0:00:29.7]} 29... Rxf3 {[%clk 0:00:25.1]} 30. Qe5 {[%clk 0:00:14.6]}
30... Qxe5 {[%clk 0:00:19.7]} 31. Bxe5 {[%clk 0:00:15.5]} 31... Ra3 {[%clk
0:00:15.7]} 32. Bc7 {[%clk 0:00:15.6]} 32... Rxa4 {[%clk 0:00:15.4]} 33. Re5
{[%clk 0:00:15.3]} 33... Be6 {[%clk 0:00:11.9]} 34. Bxa5 {[%clk 0:00:14.9]}
34... g5 {[%clk 0:00:05.8]} 35. Bc3 {[%clk 0:00:13]} 35... Kg6 {[%clk
0:00:05.6]} 36. Bd2 {[%clk 0:00:09.8]} 36... Ra2 {[%clk 0:00:04.7]} 37. Be3
{[%clk 0:00:09.7]} 37... Ra1+ {[%clk 0:00:04.6]} 38. Kg2 {[%clk 0:00:06.7]}
38... Bd7 {[%clk 0:00:04.5]} 39. f4 {[%clk 0:00:04.1]} 39... Bc6+ {[%clk
0:00:04.6]} 40. Kf2 {[%clk 0:00:04.5]} 40... g4 {[%clk 0:00:04.7]} 41. Rc5
{[%clk 0:00:03.7]} 41... Bf3 {[%clk 0:00:03.7]} 42. Bd2 {[%clk 0:00:02.7]} 42...
Ra2 {[%clk 0:00:04.3]} 43. Ke3 {[%clk 0:00:02.8]} 43... f6 {[%clk 0:00:04.7]}
44. f5+ {[%clk 0:00:03]} 44... Kh5 {[%clk 0:00:01.2]} 45. Rc7 {[%clk 0:00:02.2]}
45... Ra3+ {[%clk 0:00:01.5]} 46. Kf2 {[%clk 0:00:02.2]} 1-0

[Event "Early-Titled-Tuesday-Blitz-October-10-2023"]
[Site "Chess.com"]
[Date "2023.10.10"]
[Round "9"]
[White "MMAHDI2013"]
[Black "queen_iryna"]
[Result "1-0"]
[WhiteElo "2481"]
[BlackElo "2326"]
[TimeControl "180+1"]
[EndTime "9:44:29 PDT"]
[Termination "MMAHDI2013 won by resignation"]

1. c4 {[%clk 0:02:06.4]} 1... d6 {[%clk 0:02:58.9]} 2. d4 {[%clk 0:02:06]} 2...
e5 {[%clk 0:02:59.8]} 3. dxe5 {[%clk 0:02:06.3]} 3... dxe5 {[%clk 0:02:59.4]} 4.
Qxd8+ {[%clk 0:02:06.9]} 4... Kxd8 {[%clk 0:03:00.3]} 5. Nc3 {[%clk 0:02:07.7]}
5... c6 {[%clk 0:02:59.1]} 6. Nf3 {[%clk 0:02:05.3]} 6... f6 {[%clk 0:02:58.5]}
7. b3 {[%clk 0:02:04.6]} 7... Be6 {[%clk 0:02:57.5]} 8. Bb2 {[%clk 0:02:04.6]}
8... Nd7 {[%clk 0:02:57.2]} 9. O-O-O {[%clk 0:02:04.6]} 9... Kc7 {[%clk
0:02:55.8]} 10. e3 {[%clk 0:02:03.3]} 10... a5 {[%clk 0:02:53.4]} 11. h3 {[%clk
0:02:03.1]} 11... Ne7 {[%clk 0:02:52.8]} 12. Bd3 {[%clk 0:02:01.7]} 12... Nc8
{[%clk 0:02:52.1]} 13. g4 {[%clk 0:02:00.4]} 13... Ncb6 {[%clk 0:02:51.1]} 14.
Nh4 {[%clk 0:01:57.5]} 14... a4 {[%clk 0:02:43.7]} 15. f4 {[%clk 0:01:56.1]}
15... axb3 {[%clk 0:02:42.5]} 16. axb3 {[%clk 0:01:56]} 16... Ba3 {[%clk
0:02:41.3]} 17. Bf5 {[%clk 0:01:46.6]} 17... Rhe8 {[%clk 0:02:26.8]} 18. Bxe6
{[%clk 0:01:40.1]} 18... Rxe6 {[%clk 0:02:27.7]} 19. f5 {[%clk 0:01:35.3]} 19...
Ree8 {[%clk 0:02:24.1]} 20. Bxa3 {[%clk 0:01:32.4]} 20... Rxa3 {[%clk
0:02:21.5]} 21. Kb2 {[%clk 0:01:33.3]} 21... Raa8 {[%clk 0:02:19.6]} 22. Nf3
{[%clk 0:01:27.5]} 22... Nc5 {[%clk 0:02:07.2]} 23. Rhg1 {[%clk 0:01:19.6]}
23... Rad8 {[%clk 0:02:02.7]} 24. g5 {[%clk 0:01:17.3]} 24... Rxd1 {[%clk
0:01:57.5]} 25. Nxd1 {[%clk 0:01:18.1]} 25... Re7 {[%clk 0:01:50.9]} 26. gxf6
{[%clk 0:01:17.2]} 26... gxf6 {[%clk 0:01:51.8]} 27. Kc2 {[%clk 0:01:14.9]}
27... Ne4 {[%clk 0:01:45.4]} 28. Nc3 {[%clk 0:01:13.3]} 28... Nxc3 {[%clk
0:01:43.4]} 29. Kxc3 {[%clk 0:01:14.2]} 29... Nd7 {[%clk 0:01:42.5]} 30. Nd2
{[%clk 0:01:13.9]} 30... b6 {[%clk 0:01:22.5]} 31. Ne4 {[%clk 0:01:12.5]} 31...
Rf7 {[%clk 0:01:16.1]} 32. b4 {[%clk 0:01:12.1]} 32... Nb8 {[%clk 0:01:03.6]}
33. h4 {[%clk 0:01:10.4]} 33... Kd8 {[%clk 0:01:01.7]} 34. h5 {[%clk 0:01:10.1]}
34... Ke8 {[%clk 0:01:01.5]} 35. Rg8+ {[%clk 0:01:08.1]} 35... Rf8 {[%clk
0:01:01.2]} 36. Nxf6+ {[%clk 0:01:07.9]} 36... Kf7 {[%clk 0:01:01.5]} 37. Rxf8+
{[%clk 0:01:05.1]} 37... Kxf8 {[%clk 0:01:02.4]} 38. Nxh7+ {[%clk 0:01:04.7]}
38... Kg7 {[%clk 0:01:00.9]} 39. Ng5 {[%clk 0:01:01.9]} 39... Nd7 {[%clk
0:01:00.6]} 40. e4 {[%clk 0:01:01.2]} 40... Kh6 {[%clk 0:00:56.9]} 41. Ne6
{[%clk 0:00:59.4]} 41... Kxh5 {[%clk 0:00:55.9]} 42. b5 {[%clk 0:00:56.2]} 42...
cxb5 {[%clk 0:00:54.2]} 43. cxb5 {[%clk 0:00:55.8]} 43... Nf6 {[%clk 0:00:50.3]}
44. Kd3 {[%clk 0:00:48.5]} 44... Kh6 {[%clk 0:00:47.5]} 45. Nc7 {[%clk 0:00:46]}
45... Nd7 {[%clk 0:00:47.2]} 46. Kc4 {[%clk 0:00:41.8]} 46... Kg5 {[%clk
0:00:43.1]} 47. Kd5 {[%clk 0:00:35.7]} 47... Kf6 {[%clk 0:00:41.3]} 48. Na8
{[%clk 0:00:30.8]} 48... Ke7 {[%clk 0:00:36.6]} 49. Kc6 {[%clk 0:00:25.6]} 49...
Nc5 {[%clk 0:00:35.5]} 50. Nxb6 {[%clk 0:00:26.4]} 50... Nxe4 {[%clk 0:00:35.3]}
51. Nd5+ {[%clk 0:00:27.1]} 51... Kf7 {[%clk 0:00:32.9]} 52. b6 {[%clk 0:00:28]}
52... Ng3 {[%clk 0:00:16.9]} 53. b7 {[%clk 0:00:27.1]} 53... Nxf5 {[%clk
0:00:17.8]} 54. b8=Q {[%clk 0:00:25.5]} 1-0

[Event "Early-Titled-Tuesday-Blitz-October-10-2023"]
[Site "Chess.com"]
[Date "2023.10.10"]
[Round "9"]
[White "astralpulse"]
[Black "Fandorine"]
[Result "0-1"]
[WhiteElo "2720"]
[BlackElo "2916"]
[TimeControl "180+1"]
[EndTime "9:44:31 PDT"]
[Termination "Fandorine won on time"]

1. d4 {[%clk 0:02:59.1]} 1... Nf6 {[%clk 0:02:59.7]} 2. Nf3 {[%clk 0:02:58.5]}
2... g6 {[%clk 0:03:00.1]} 3. g3 {[%clk 0:02:58.3]} 3... Bg7 {[%clk 0:03:00]} 4.
Bg2 {[%clk 0:02:58.9]} 4... O-O {[%clk 0:03:00.3]} 5. O-O {[%clk 0:02:59.5]}
5... d6 {[%clk 0:03:01]} 6. c4 {[%clk 0:02:59.4]} 6... c5 {[%clk 0:03:01.3]} 7.
Nc3 {[%clk 0:02:58.8]} 7... Nc6 {[%clk 0:03:01.7]} 8. dxc5 {[%clk 0:02:58.8]}
8... dxc5 {[%clk 0:03:02.6]} 9. Bf4 {[%clk 0:02:58.6]} 9... Nh5 {[%clk
0:02:59.6]} 10. Be3 {[%clk 0:02:58.1]} 10... b6 {[%clk 0:02:57.9]} 11. Qa4
{[%clk 0:02:46.2]} 11... Bd7 {[%clk 0:02:49.9]} 12. Rad1 {[%clk 0:02:05]} 12...
Bxc3 {[%clk 0:02:06.6]} 13. bxc3 {[%clk 0:02:04.4]} 13... Qc8 {[%clk 0:02:07.2]}
14. Rd2 {[%clk 0:01:22.3]} 14... Ng7 {[%clk 0:01:37.1]} 15. Bh6 {[%clk
0:01:14.3]} 15... Nd4 {[%clk 0:01:23.8]} 16. Qd1 {[%clk 0:01:03.5]} 16... Nxf3+
{[%clk 0:01:24]} 17. Bxf3 {[%clk 0:00:57.2]} 17... Bc6 {[%clk 0:01:20.9]} 18.
Bxc6 {[%clk 0:00:41.8]} 18... Qxc6 {[%clk 0:01:20.6]} 19. Rd7 {[%clk 0:00:42.5]}
19... Rfe8 {[%clk 0:01:14.6]} 20. Bxg7 {[%clk 0:00:40.6]} 20... Kxg7 {[%clk
0:01:15.5]} 21. Qd5 {[%clk 0:00:40.3]} 21... Qxd5 {[%clk 0:01:09.5]} 22. cxd5
{[%clk 0:00:40.4]} 22... Red8 {[%clk 0:01:09.4]} 23. Rxd8 {[%clk 0:00:38.2]}
23... Rxd8 {[%clk 0:01:09.3]} 24. c4 {[%clk 0:00:38.6]} 24... e6 {[%clk
0:00:59.9]} 25. e4 {[%clk 0:00:23.4]} 25... f5 {[%clk 0:01:00.2]} 26. f3 {[%clk
0:00:16.5]} 26... Kf6 {[%clk 0:00:59.8]} 27. Re1 {[%clk 0:00:12.1]} 27... fxe4
{[%clk 0:00:58.3]} 28. dxe6 {[%clk 0:00:12.3]} 28... exf3 {[%clk 0:00:48.6]} 29.
Kf2 {[%clk 0:00:11.4]} 29... Re8 {[%clk 0:00:48.3]} 30. Kxf3 {[%clk 0:00:10.7]}
30... Rxe6 {[%clk 0:00:48.9]} 31. Rd1 {[%clk 0:00:11.2]} 31... Ke7 {[%clk
0:00:47]} 32. a4 {[%clk 0:00:09]} 32... Rd6 {[%clk 0:00:46.2]} 33. Re1+ {[%clk
0:00:08.7]} 33... Kf7 {[%clk 0:00:44.3]} 34. a5 {[%clk 0:00:06.7]} 34... Rd3+
{[%clk 0:00:22.9]} 35. Kg2 {[%clk 0:00:02.7]} 35... Rd2+ {[%clk 0:00:23.2]} 36.
Kh3 {[%clk 0:00:02.2]} 36... Rb2 {[%clk 0:00:23.1]} 37. axb6 {[%clk 0:00:01.7]}
37... axb6 {[%clk 0:00:24]} 38. Rd1 {[%clk 0:00:01.9]} 38... Ke6 {[%clk
0:00:20.3]} 39. Re1+ {[%clk 0:00:02.2]} 39... Kd6 {[%clk 0:00:20.3]} 40. Rd1+
{[%clk 0:00:02.5]} 40... Kc6 {[%clk 0:00:20.9]} 41. Rc1 {[%clk 0:00:03]} 41...
b5 {[%clk 0:00:19.6]} 42. cxb5+ {[%clk 0:00:03.2]} 42... Kxb5 {[%clk 0:00:20.5]}
43. g4 {[%clk 0:00:03.1]} 43... c4 {[%clk 0:00:20.8]} 44. g5 {[%clk 0:00:03.2]}
44... Kb4 {[%clk 0:00:20.2]} 45. Rf1 {[%clk 0:00:03.2]} 45... c3 {[%clk
0:00:20.8]} 46. Rf7 {[%clk 0:00:03.7]} 46... c2 {[%clk 0:00:20.9]} 47. Rb7+
{[%clk 0:00:04.3]} 47... Kc3 {[%clk 0:00:21.2]} 48. Rc7+ {[%clk 0:00:04]} 48...
Kd2 {[%clk 0:00:21.8]} 49. Rd7+ {[%clk 0:00:04.4]} 49... Kc1 {[%clk 0:00:18.3]}
50. Rxh7 {[%clk 0:00:05]} 50... Rb4 {[%clk 0:00:18.7]} 51. Rc7 {[%clk
0:00:05.3]} 51... Kb2 {[%clk 0:00:18.7]} 52. Kg3 {[%clk 0:00:05.5]} 52... Rb3+
{[%clk 0:00:19]} 53. Kg4 {[%clk 0:00:05.5]} 53... Rc3 {[%clk 0:00:19.7]} 54.
Rb7+ {[%clk 0:00:04.9]} 54... Ka3 {[%clk 0:00:20.1]} 55. Ra7+ {[%clk 0:00:05.2]}
55... Kb4 {[%clk 0:00:20.8]} 56. Ra1 {[%clk 0:00:05.5]} 56... c1=Q {[%clk
0:00:20.9]} 57. Rxc1 {[%clk 0:00:05.7]} 57... Rxc1 {[%clk 0:00:21.3]} 58. Kf4
{[%clk 0:00:05.8]} 58... Rc5 {[%clk 0:00:21.3]} 0-1

[Event "Early-Titled-Tuesday-Blitz-October-10-2023"]
[Site "Chess.com"]
[Date "2023.10.10"]
[Round "9"]
[White "secrethawk1"]
[Black "Mystery2007"]
[Result "0-1"]
[WhiteElo "2278"]
[BlackElo "2479"]
[TimeControl "180+1"]
[EndTime "9:44:32 PDT"]
[Termination "Mystery2007 won by checkmate"]

1. d4 {[%clk 0:02:58.7]} 1... a6 {[%clk 0:02:58.8]} 2. e4 {[%clk 0:02:55.9]}
2... e6 {[%clk 0:02:58.6]} 3. c4 {[%clk 0:02:54.3]} 3... d5 {[%clk 0:02:58.4]}
4. cxd5 {[%clk 0:02:54.3]} 4... exd5 {[%clk 0:02:59.3]} 5. exd5 {[%clk
0:02:54.3]} 5... Nf6 {[%clk 0:02:57.3]} 6. Nc3 {[%clk 0:02:54.3]} 6... Nxd5
{[%clk 0:02:56.1]} 7. Nf3 {[%clk 0:02:53.7]} 7... Be7 {[%clk 0:02:54.4]} 8. Bd3
{[%clk 0:02:52.7]} 8... O-O {[%clk 0:02:51.7]} 9. O-O {[%clk 0:02:51.5]} 9...
Nc6 {[%clk 0:02:51.3]} 10. Re1 {[%clk 0:02:50.4]} 10... Bg4 {[%clk 0:02:47.5]}
11. h3 {[%clk 0:02:47.6]} 11... Bh5 {[%clk 0:02:47.5]} 12. Bb1 {[%clk
0:02:39.1]} 12... Bg6 {[%clk 0:02:47.1]} 13. Bxg6 {[%clk 0:02:34.6]} 13... hxg6
{[%clk 0:02:46.5]} 14. Qb3 {[%clk 0:02:29.5]} 14... Nb6 {[%clk 0:02:35.4]} 15.
Bf4 {[%clk 0:02:24.5]} 15... Bd6 {[%clk 0:02:34.6]} 16. Bg5 {[%clk 0:02:23.8]}
16... Qd7 {[%clk 0:02:32.9]} 17. Rad1 {[%clk 0:02:16.5]} 17... Rfe8 {[%clk
0:02:31.6]} 18. Ne5 {[%clk 0:02:14.6]} 18... Bxe5 {[%clk 0:02:25.7]} 19. dxe5
{[%clk 0:02:13]} 19... Qe6 {[%clk 0:02:23]} 20. Qc2 {[%clk 0:02:03.9]} 20... Qf5
{[%clk 0:01:45]} 21. Qxf5 {[%clk 0:01:57.3]} 21... gxf5 {[%clk 0:01:45.9]} 22.
f4 {[%clk 0:01:55.8]} 22... Re6 {[%clk 0:01:40.9]} 23. Bh4 {[%clk 0:01:52.1]}
23... Rae8 {[%clk 0:01:31.2]} 24. Bf2 {[%clk 0:01:50.1]} 24... Ne7 {[%clk
0:01:02.3]} 25. g3 {[%clk 0:01:42.2]} 25... Rc6 {[%clk 0:00:41.2]} 26. Rd3
{[%clk 0:01:34.8]} 26... Nc4 {[%clk 0:00:38.8]} 27. Re2 {[%clk 0:01:33.5]} 27...
b5 {[%clk 0:00:26.3]} 28. b3 {[%clk 0:01:25.2]} 28... Na3 {[%clk 0:00:18.2]} 29.
Red2 {[%clk 0:01:20.2]} 29... b4 {[%clk 0:00:17.5]} 30. Nd5 {[%clk 0:01:17.8]}
30... Nxd5 {[%clk 0:00:17.2]} 31. Rxd5 {[%clk 0:01:18.7]} 31... Nb5 {[%clk
0:00:15.7]} 32. Rc5 {[%clk 0:01:11.1]} 32... Ree6 {[%clk 0:00:13.7]} 33. Rd8+
{[%clk 0:00:58]} 33... Kh7 {[%clk 0:00:14.1]} 34. Rd7 {[%clk 0:00:57.7]} 34...
Rxc5 {[%clk 0:00:13.1]} 35. Bxc5 {[%clk 0:00:57.8]} 35... Rc6 {[%clk 0:00:13.7]}
36. Bxb4 {[%clk 0:00:57.7]} 36... Kg6 {[%clk 0:00:13.3]} 37. Kf2 {[%clk
0:00:54.9]} 37... Rc2+ {[%clk 0:00:13.2]} 38. Rd2 {[%clk 0:00:55]} 38... Rc1
{[%clk 0:00:07.8]} 39. a4 {[%clk 0:00:50.5]} 39... Na7 {[%clk 0:00:07]} 40. Ba3
{[%clk 0:00:44.7]} 40... Ra1 {[%clk 0:00:05]} 41. Bb2 {[%clk 0:00:37]} 41... Rh1
{[%clk 0:00:05.2]} 42. Rc2 {[%clk 0:00:33.9]} 42... Rh2+ {[%clk 0:00:04.7]} 43.
Ke3 {[%clk 0:00:31.8]} 43... Rxc2 {[%clk 0:00:05.6]} 44. Bd4 {[%clk 0:00:31.2]}
44... Nc6 {[%clk 0:00:05]} 45. Ba1 {[%clk 0:00:30.8]} 45... Nb4 {[%clk
0:00:05.2]} 46. e6 {[%clk 0:00:29.9]} 46... fxe6 {[%clk 0:00:05]} 47. h4 {[%clk
0:00:30.2]} 47... c5 {[%clk 0:00:05.2]} 48. Be5 {[%clk 0:00:29.7]} 48... Kh5
{[%clk 0:00:05.7]} 49. Bxg7 {[%clk 0:00:28.6]} 49... Kg4 {[%clk 0:00:06.3]} 50.
Be5 {[%clk 0:00:28.7]} 50... Rg2 {[%clk 0:00:05.8]} 51. Bd6 {[%clk 0:00:24.8]}
51... Rxg3+ {[%clk 0:00:06.7]} 52. Ke2 {[%clk 0:00:24.6]} 52... Rxb3 {[%clk
0:00:07.3]} 53. Bxc5 {[%clk 0:00:24.8]} 53... Nd5 {[%clk 0:00:07.9]} 54. a5
{[%clk 0:00:24.2]} 54... Nxf4+ {[%clk 0:00:08.8]} 55. Kf2 {[%clk 0:00:24.1]}
55... Rf3+ {[%clk 0:00:08.6]} 56. Kg1 {[%clk 0:00:24.4]} 56... Rh3 {[%clk
0:00:09.3]} 57. Bf2 {[%clk 0:00:23.1]} 57... Kf3 {[%clk 0:00:09.5]} 58. h5
{[%clk 0:00:20.5]} 58... Ne2+ {[%clk 0:00:09.9]} 59. Kf1 {[%clk 0:00:20.4]}
59... Rh1+ {[%clk 0:00:09.9]} 60. Bg1 {[%clk 0:00:21.2]} 60... Rxg1# {[%clk
0:00:10.1]} 0-1

[Event "Early-Titled-Tuesday-Blitz-October-10-2023"]
[Site "Chess.com"]
[Date "2023.10.10"]
[Round "9"]
[White "KatakuriDono"]
[Black "a-z30"]
[Result "1-0"]
[WhiteElo "2341"]
[BlackElo "2463"]
[TimeControl "180+1"]
[EndTime "9:44:33 PDT"]
[Termination "KatakuriDono won by resignation"]

1. d4 {[%clk 0:02:57.9]} 1... Nf6 {[%clk 0:02:59.6]} 2. c4 {[%clk 0:02:57.9]}
2... e6 {[%clk 0:03:00]} 3. Nf3 {[%clk 0:02:57.2]} 3... d5 {[%clk 0:02:57.4]} 4.
g3 {[%clk 0:02:55.7]} 4... c5 {[%clk 0:02:56.5]} 5. cxd5 {[%clk 0:02:50.4]} 5...
exd5 {[%clk 0:02:56]} 6. Bg2 {[%clk 0:02:50.6]} 6... Nc6 {[%clk 0:02:55.7]} 7.
O-O {[%clk 0:02:50]} 7... Be7 {[%clk 0:02:55.6]} 8. Nc3 {[%clk 0:02:47.1]} 8...
O-O {[%clk 0:02:54.2]} 9. dxc5 {[%clk 0:02:45.6]} 9... Bxc5 {[%clk 0:02:53.9]}
10. Bg5 {[%clk 0:02:43.1]} 10... d4 {[%clk 0:02:54.1]} 11. Bxf6 {[%clk
0:02:36.7]} 11... Qxf6 {[%clk 0:02:53.2]} 12. Ne4 {[%clk 0:02:37]} 12... Qe7
{[%clk 0:02:53.2]} 13. Nxc5 {[%clk 0:02:37.4]} 13... Qxc5 {[%clk 0:02:53]} 14.
Rc1 {[%clk 0:02:38.1]} 14... Qb6 {[%clk 0:02:43.7]} 15. Qd2 {[%clk 0:02:36.1]}
15... Be6 {[%clk 0:02:42.5]} 16. b3 {[%clk 0:02:29.3]} 16... Rad8 {[%clk
0:02:41.9]} 17. Rfd1 {[%clk 0:02:28.7]} 17... Rfe8 {[%clk 0:02:40.4]} 18. Qg5
{[%clk 0:02:24.3]} 18... h6 {[%clk 0:02:03.2]} 19. Qf4 {[%clk 0:02:17.4]} 19...
Bd5 {[%clk 0:01:59.8]} 20. Qd2 {[%clk 0:02:00.6]} 20... d3 {[%clk 0:01:49.9]}
21. Qxd3 {[%clk 0:01:46.5]} 21... Bxf3 {[%clk 0:01:46.6]} 22. Qxf3 {[%clk
0:01:46]} 22... Nd4 {[%clk 0:01:46.3]} 23. Rxd4 {[%clk 0:01:38.7]} 23... Qxd4
{[%clk 0:01:34.7]} 24. h4 {[%clk 0:01:24.2]} 24... Rc8 {[%clk 0:01:22.7]} 25.
Rxc8 {[%clk 0:00:57.6]} 25... Rxc8 {[%clk 0:01:22.1]} 26. e3 {[%clk 0:00:58.1]}
26... Qa1+ {[%clk 0:01:11.3]} 27. Kh2 {[%clk 0:00:57.6]} 27... Qxa2 {[%clk
0:01:03.8]} 28. Qxb7 {[%clk 0:00:56.7]} 28... Rf8 {[%clk 0:00:54.8]} 29. Kg1
{[%clk 0:00:52.5]} 29... a5 {[%clk 0:00:46.7]} 30. Bd5 {[%clk 0:00:49.7]} 30...
Qb1+ {[%clk 0:00:45.7]} 31. Kg2 {[%clk 0:00:48.4]} 31... Qe1 {[%clk 0:00:38.1]}
32. Qc7 {[%clk 0:00:40.9]} 32... Qb4 {[%clk 0:00:35.2]} 33. e4 {[%clk
0:00:39.3]} 33... g6 {[%clk 0:00:24.1]} 34. Qc6 {[%clk 0:00:37]} 34... Kg7
{[%clk 0:00:21.9]} 35. Qd7 {[%clk 0:00:36.2]} 35... Qd4 {[%clk 0:00:18.5]} 36.
Qc7 {[%clk 0:00:31.8]} 36... Qf6 {[%clk 0:00:12.2]} 37. Qxa5 {[%clk 0:00:30.1]}
37... Rc8 {[%clk 0:00:12.2]} 38. b4 {[%clk 0:00:25.9]} 38... Rc2 {[%clk
0:00:11.1]} 39. Qa7 {[%clk 0:00:26.4]} 39... Rb2 {[%clk 0:00:08.5]} 40. Qc5
{[%clk 0:00:26.5]} 40... Rd2 {[%clk 0:00:04.8]} 41. b5 {[%clk 0:00:26.2]} 41...
Qd4 {[%clk 0:00:04.7]} 42. Qxd4+ {[%clk 0:00:25.8]} 42... Rxd4 {[%clk
0:00:05.6]} 43. b6 {[%clk 0:00:26.3]} 43... Rb4 {[%clk 0:00:06.5]} 44. b7 {[%clk
0:00:26.9]} 44... Kf6 {[%clk 0:00:06.4]} 45. Kf3 {[%clk 0:00:27.1]} 45... g5
{[%clk 0:00:06.8]} 46. hxg5+ {[%clk 0:00:26.5]} 46... hxg5 {[%clk 0:00:07.7]}
47. Ke3 {[%clk 0:00:24.3]} 47... Ke5 {[%clk 0:00:07.8]} 48. f4+ {[%clk
0:00:23.9]} 48... gxf4+ {[%clk 0:00:05.7]} 49. gxf4+ {[%clk 0:00:24.8]} 49...
Kd6 {[%clk 0:00:05.3]} 50. Kd3 {[%clk 0:00:24.6]} 50... f6 {[%clk 0:00:05.1]}
51. Kc3 {[%clk 0:00:24]} 51... Rb1 {[%clk 0:00:05.2]} 52. Kc2 {[%clk 0:00:24.3]}
52... Rb6 {[%clk 0:00:04.7]} 53. Kc3 {[%clk 0:00:23.9]} 53... Kc5 {[%clk
0:00:05.2]} 54. f5 {[%clk 0:00:23.5]} 54... Kd6 {[%clk 0:00:04.8]} 55. Kc4
{[%clk 0:00:23.7]} 55... Rb1 {[%clk 0:00:04.9]} 56. Kc3 {[%clk 0:00:24.1]} 56...
Kc7 {[%clk 0:00:04.9]} 57. Kc4 {[%clk 0:00:24.3]} 57... Kd6 {[%clk 0:00:04.3]}
58. Kd3 {[%clk 0:00:24.4]} 58... Rxb7 {[%clk 0:00:03.4]} 59. Bxb7 {[%clk
0:00:24]} 59... Ke5 {[%clk 0:00:03.7]} 60. Bd5 {[%clk 0:00:23.8]} 60... Kd6
{[%clk 0:00:04]} 61. Kc4 {[%clk 0:00:24.1]} 61... Ke5 {[%clk 0:00:04.9]} 62. Kc5
{[%clk 0:00:24.5]} 1-0